bitfinex/quotes_BTCUSD_20241211
["timestamp","ask_amount","ask_price","bid_price","bid_amount"]
[1733881845218,0.28295976,96401.0,96400.0,8.57e-05]
[1733881845417,0.49042576,96401.0,96400.0,0.0010857]
[1733881845618,0.28295976,96401.0,96400.0,0.0010857]
[1733881846242,0.156842,96401.0,96400.0,0.0010857]
[1733881846443,0.28795976,96401.0,96400.0,8.57e-05]
[1733881846805,0.28295976,96401.0,96400.0,8.57e-05]
[1733881847025,0.28795976,96401.0,96400.0,8.57e-05]
[1733881847473,0.28295976,96401.0,96400.0,8.57e-05]
[1733881847678,0.49042576,96401.0,96400.0,8.57e-05]
[1733881848250,0.595751,96401.0,96400.0,8.57e-05]
[1733881848677,0.673651,96401.0,96400.0,8.57e-05]
[1733881848880,0.978651,96401.0,96400.0,8.57e-05]
[1733881849286,0.972651,96401.0,96400.0,8.57e-05]
[1733881849522,1.1474329,96401.0,96400.0,8.57e-05]
[1733881849778,1.1484329,96401.0,96400.0,8.57e-05]
[1733881849936,1.03832961,96401.0,96400.0,8.57e-05]
[1733881850136,1.03832961,96401.0,96400.0,0.0010857]
[1733881850137,1.04332961,96401.0,96400.0,0.0010857]
[1733881850689,1.03832961,96401.0,96400.0,8.57e-05]
[1733881850894,1.04332961,96401.0,96400.0,0.0010857]
[1733881851007,1.04232961,96401.0,96400.0,0.0010857]
[1733881851209,1.04732961,96401.0,96400.0,0.0010857]
[1733881851887,1.04232961,96401.0,96400.0,0.0010857]
[1733881852254,1.04832961,96401.0,96400.0,0.0020857]
[1733881852664,1.1534329,96401.0,96400.0,0.0020857]
[1733881853090,1.18573684,96401.0,96400.0,0.0020857]
[1733881853779,1.27858855,96401.0,96400.0,7e-07]
[1733881854201,0.55995976,96391.0,96390.0,8.56e-05]
[1733881854322,1.021673,96391.0,96390.0,6e-07]
[1733881854552,1.07054298,96391.0,96390.0,6e-07]
[1733881855002,1.10282972,96391.0,96390.0,6e-07]
[1733881855210,1.07054298,96391.0,96390.0,6e-07]
[1733881855409,1.07060571,96391.0,96390.0,6e-07]
[1733881855581,0.74589373,96391.0,96390.0,0.0010006]
[1733881855797,0.73873573,96391.0,96390.0,0.0020006]
[1733881856018,0.68173573,96391.0,96390.0,0.0010006]
[1733881856245,0.83173573,96391.0,96390.0,0.0010006]
[1733881856646,0.82273573,96391.0,96390.0,6e-07]
[1733881856972,0.83173573,96391.0,96390.0,0.0010006]
[1733881857415,0.82273573,96391.0,96390.0,6e-07]
[1733881857626,0.82273573,96391.0,96390.0,0.0010006]
[1733881857627,0.83073573,96391.0,96390.0,0.0010006]
[1733881858266,0.82273573,96391.0,96390.0,6e-07]
[1733881858436,0.82573573,96391.0,96390.0,6e-07]
[1733881858879,0.82573573,96391.0,96390.0,0.0010006]
[1733881858880,0.83473573,96391.0,96390.0,0.0010006]
[1733881859052,0.82573573,96391.0,96390.0,6e-07]
[1733881859478,0.68173573,96391.0,96390.0,0.0010006]
[1733881859802,0.67273573,96391.0,96390.0,6e-07]
[1733881860027,0.68073573,96391.0,96390.0,6e-07]
[1733881860407,0.39634773,96391.0,96390.0,6e-07]
[1733881860685,0.37334773,96391.0,96390.0,6e-07]
[1733881860901,0.13418049,96391.0,96390.0,6e-07]
[1733881861035,0.26802249,96391.0,96390.0,0.02854056]
[1733881861237,0.26802249,96391.0,96390.0,6e-07]
[1733881861440,0.27202249,96391.0,96390.0,6e-07]
[1733881862072,0.26002249,96391.0,96390.0,6e-07]
[1733881862232,0.38834773,96391.0,96390.0,0.0010006]
[1733881862459,0.15018049,96391.0,96390.0,0.0010006]
[1733881862658,0.26002249,96391.0,96390.0,0.0010006]
[1733881862939,0.12618049,96391.0,96390.0,6e-07]
[1733881863219,0.12718049,96391.0,96390.0,6e-07]
[1733881863461,0.26002249,96391.0,96390.0,0.04150016]
[1733881863583,0.26002249,96391.0,96390.0,0.05200915]
[1733881863584,0.13390473,96391.0,96390.0,0.05200915]
[1733881863771,0.13490473,96391.0,96390.0,0.05200915]
[1733881863980,0.00106273,96391.0,96390.0,0.05200915]
[1733881864219,0.00106273,96391.0,96390.0,0.20343439]
[1733881864695,0.00106273,96391.0,96390.0,0.28133439]
[1733881864946,0.00106273,96391.0,96390.0,0.28233439]
[1733881865172,0.00106273,96391.0,96390.0,0.08940959]
[1733881865173,0.13390473,96391.0,96390.0,0.08940959]
[1733881865375,0.13390473,96391.0,96390.0,0.01150959]
[1733881865376,0.26002249,96391.0,96390.0,0.01150959]
[1733881865578,0.26002249,96391.0,96390.0,0.0020006]
[1733881866017,0.26002249,96391.0,96390.0,6e-07]
[1733881866255,0.13390473,96391.0,96390.0,0.0020006]
[1733881866460,0.26002249,96391.0,96390.0,0.0060006]
[1733881866670,0.26002249,96391.0,96390.0,0.02638667]
[1733881867563,0.26102249,96391.0,96390.0,0.02638667]
[1733881867772,0.26102249,96391.0,96390.0,0.02238667]
[1733881867995,0.26102249,96391.0,96390.0,6e-07]
[1733881868201,0.26102249,96391.0,96390.0,0.0010006]
[1733881868582,0.26102249,96391.0,96390.0,6e-07]
[1733881868917,0.36534773,96391.0,96390.0,6e-07]
[1733881869128,0.36534773,96391.0,96390.0,0.0010006]
[1733881869585,0.36534773,96391.0,96390.0,6e-07]
[1733881870005,0.36634773,96391.0,96390.0,6e-07]
[1733881870216,0.13490473,96391.0,96390.0,6e-07]
[1733881870434,6.273e-05,96391.0,96390.0,0.11940006]
[1733881870648,0.00806273,96391.0,96390.0,0.2257253]
[1733881870851,0.00806273,96391.0,96390.0,0.2718253]
[1733881871270,0.00806273,96391.0,96390.0,0.28204183]
[1733881871419,0.00806273,96391.0,96390.0,0.28304183]
[1733881872053,0.00806273,96391.0,96390.0,0.28204183]
[1733881872310,0.00806273,96391.0,96390.0,0.13421713]
[1733881872311,6.273e-05,96391.0,96390.0,0.13421713]
[1733881872512,0.00106273,96391.0,96390.0,0.13921713]
[1733881872841,6.273e-05,96391.0,96390.0,0.13421713]
[1733881873246,0.00206273,96391.0,96390.0,0.14921713]
[1733881873448,0.00106273,96391.0,96390.0,0.14021713]
[1733881873648,0.00106273,96391.0,96390.0,0.32181368]
[1733881874008,0.00106273,96391.0,96390.0,0.32281368]
[1733881874419,0.00106273,96391.0,96390.0,0.41574987]
[1733881874530,6.273e-05,96391.0,96390.0,0.31681368]
[1733881874742,6.273e-05,96391.0,96390.0,0.16538844]
[1733881874975,6.273e-05,96391.0,96390.0,0.16838844]
[1733881875372,6.273e-05,96391.0,96390.0,0.16738844]
[1733881875580,6.273e-05,96391.0,96390.0,0.16438844]
[1733881875802,6.273e-05,96391.0,96390.0,0.16938844]
[1733881876062,6.273e-05,96391.0,96390.0,0.16738844]
[1733881876493,6.273e-05,96391.0,96390.0,0.16538844]
[1733881876702,6.273e-05,96391.0,96390.0,0.16438844]
[1733881877201,6.273e-05,96391.0,96390.0,0.27371368]
[1733881877880,6.273e-05,96391.0,96390.0,0.27671368]
[1733881878489,6.273e-05,96391.0,96390.0,0.26971368]
[1733881878726,6.273e-05,96391.0,96390.0,0.27371368]
[1733881879038,6.273e-05,96391.0,96390.0,0.29859592]
[1733881879245,0.0001714,96400.0,96399.0,0.207471]
[1733881879457,0.0001714,96400.0,96399.0,0.48196576]
[1733881879670,0.0001714,96400.0,96399.0,0.38919624]
[1733881880564,0.0001714,96400.0,96399.0,0.48195071]
[1733881880804,0.0001714,96400.0,96393.0,0.414966]
[1733881880805,0.0001714,96400.0,96397.0,0.30022739]
[1733881881317,0.0001714,96400.0,96391.0,0.28168645]
[1733881881318,0.133842,96397.0,96396.0,0.09275339]
[1733881881321,0.25995976,96397.0,96396.0,0.09275339]
[1733881881584,0.0001714,96400.0,96391.0,0.30366566]
[1733881881585,0.133842,96392.0,96391.0,0.30366566]
[1733881881809,0.12611776,96397.0,96395.0,0.207477]
[1733881882027,0.12611776,96397.0,96393.0,0.207483]
[1733881882028,0.133842,96394.0,96393.0,0.207483]
[1733881882238,0.133842,96394.0,96393.0,0.2301068]
[1733881882672,0.133842,96394.0,96393.0,0.0226238]
[1733881883309,0.134842,96394.0,96393.0,0.0286238]
[1733881883717,0.133842,96394.0,96393.0,0.0246238]
[1733881883921,0.133842,96394.0,96393.0,0.0256238]
[1733881885195,0.25995976,96394.0,96393.0,0.003]
[1733881885422,0.25995976,96394.0,96393.0,0.002]
[1733881885624,0.26095976,96394.0,96390.0,0.00055174]
[1733881885826,0.12611776,96391.0,96390.0,0.00055174]
[1733881886032,0.25995976,96391.0,96390.0,0.00055174]
[1733881887705,0.365285,96391.0,96390.0,0.00055174]
[1733881888223,0.561185,96391.0,96390.0,0.00055174]
[1733881888432,0.82588233,96391.0,96390.0,0.00055174]
[1733881888872,0.82588233,96391.0,96390.0,0.00155174]
[1733881889076,0.93298562,96391.0,96390.0,0.00155174]
[1733881889285,0.93298562,96391.0,96390.0,0.00055174]
[1733881889489,0.94198562,96391.0,96390.0,0.00155174]
[1733881889695,0.93998562,96391.0,96390.0,0.00155174]
[1733881889899,0.93998562,96391.0,96370.0,8.56e-05]
[1733881889900,0.79046876,96381.0,96370.0,8.56e-05]
[1733881890114,0.94466398,96381.0,96380.0,0.02006273]
[1733881890320,1.02356398,96381.0,96380.0,0.02006273]
[1733881891557,1.02356398,96381.0,96370.0,8.56e-05]
[1733881891558,0.40995976,96371.0,96370.0,8.56e-05]
[1733881891808,0.40995976,96371.0,96370.0,0.00025091]
[1733881891809,0.895816,96371.0,96370.0,0.00025091]
[1733881892008,0.745816,96371.0,96370.0,0.00025091]
[1733881892417,0.974716,96371.0,96370.0,0.00025091]
[1733881893821,0.979716,96371.0,96370.0,0.00025091]
[1733881894446,0.974716,96371.0,96370.0,0.00025091]
[1733881894669,0.977716,96371.0,96370.0,0.00025091]
[1733881895073,0.98812886,96371.0,96370.0,0.00025091]
[1733881895315,0.99712886,96371.0,96370.0,0.00025091]
[1733881895630,0.4051691,96371.0,96370.0,0.00025091]
[1733881895817,0.954716,96371.0,96370.0,0.00025091]
[1733881896019,0.960716,96371.0,96370.0,0.00025091]
[1733881896703,1.08881929,96371.0,96370.0,0.00025091]
[1733881896931,1.030916,96371.0,96370.0,0.00025091]
[1733881897748,1.027916,96371.0,96370.0,0.00025091]
[1733881898206,1.032916,96371.0,96370.0,0.00025091]
[1733881898652,1.026916,96371.0,96370.0,0.00025091]
[1733881898862,1.035916,96371.0,96370.0,0.00025091]
[1733881899060,1.14101929,96371.0,96370.0,0.00025091]
[1733881899278,1.13201929,96371.0,96370.0,0.00025091]
[1733881899501,1.13601929,96371.0,96370.0,0.00025091]
[1733881899919,1.14101929,96371.0,96370.0,9.1e-07]
[1733881900592,1.13601929,96371.0,96370.0,9.1e-07]
[1733881901093,1.035916,96371.0,96370.0,9.1e-07]
[1733881901505,0.880916,96371.0,96370.0,9.1e-07]
[1733881901718,0.801716,96371.0,96370.0,9.1e-07]
[1733881901924,0.572816,96371.0,96370.0,9.1e-07]
[1733881902130,0.581816,96371.0,96370.0,9.1e-07]
[1733881902335,0.572816,96371.0,96370.0,9.1e-07]
[1733881902959,0.581816,96371.0,96370.0,0.00100091]
[1733881903398,0.581816,96371.0,96370.0,8.661e-05]
[1733881903803,0.27295976,96371.0,96370.0,8.661e-05]
[1733881904009,0.13911776,96371.0,96370.0,8.661e-05]
[1733881904225,0.13911776,96371.0,96370.0,0.02893957]
[1733881904226,0.146842,96371.0,96370.0,0.02893957]
[1733881904433,0.146842,96371.0,96370.0,0.23647257]
[1733881904434,0.013,96371.0,96370.0,0.23647257]
[1733881904841,0.12611776,96379.0,96378.0,0.207516]
[1733881905045,0.25995976,96379.0,96378.0,0.207516]
[1733881905247,0.25995976,96379.0,96378.0,0.0415038]
[1733881905861,0.12611776,96379.0,96378.0,0.0415038]
[1733881906063,0.0001714,96380.0,96379.0,0.207514]
[1733881907305,0.0001714,96380.0,96379.0,0.288414]
[1733881907716,0.0001714,96380.0,96379.0,0.290414]
[1733881907939,0.0001714,96380.0,96379.0,0.36511018]
[1733881908813,0.26013116,96380.0,96379.0,0.0809]
[1733881909009,0.26013116,96380.0,96379.0,0.001]
[1733881909010,0.26113116,96380.0,96379.0,0.001]
[1733881909160,0.12628916,96380.0,96377.0,0.207518]
[1733881909372,0.12611776,96378.0,96377.0,0.207518]
[1733881909569,0.12611776,96378.0,96377.0,0.27676911]
[1733881911093,0.0001714,96380.0,96377.0,0.48928711]
[1733881911448,0.0001714,96380.0,96379.0,0.207514]
[1733881912535,0.0011714,96380.0,96379.0,0.208514]
[1733881913378,0.0021714,96380.0,96379.0,0.208514]
[1733881913581,0.0021714,96380.0,96379.0,0.29795398]
[1733881913993,0.0011714,96380.0,96379.0,0.29795398]
[1733881914400,0.0011714,96380.0,96379.0,0.30295398]
[1733881914401,0.0021714,96380.0,96379.0,0.30295398]
[1733881916490,0.1360134,96380.0,96379.0,0.213514]
[1733881916780,0.1360134,96380.0,96379.0,0.006]
[1733881916891,0.26213116,96380.0,96379.0,0.006]
[1733881917924,0.26113116,96380.0,96379.0,0.005]
[1733881918121,0.26113116,96380.0,96370.0,0.20761761]
[1733881918122,0.25995976,96371.0,96370.0,0.20761761]
[1733881919008,0.25995976,96371.0,96370.0,8.661e-05]
[1733881919602,0.133842,96371.0,96370.0,8.661e-05]
[1733881919822,0.25995976,96371.0,96370.0,8.661e-05]
[1733881920381,0.133842,96371.0,96370.0,8.661e-05]
[1733881920591,0.133842,96372.0,96371.0,0.207531]
[1733881920800,0.133842,96373.0,96371.0,0.27112314]
[1733881921003,0.133842,96378.0,96371.0,0.47865414]
[1733881921207,0.25995976,96372.0,96371.0,0.27112314]
[1733881922203,0.25995976,96372.0,96371.0,0.27212314]
[1733881922384,0.25995976,96371.0,96370.0,0.00108661]
[1733881922761,0.25995976,96371.0,96370.0,8.661e-05]
[1733881923825,0.365285,96371.0,96370.0,8.661e-05]
[1733881923963,0.366285,96371.0,96370.0,8.661e-05]
[1733881924631,0.365285,96371.0,96370.0,8.661e-05]
[1733881925574,0.369285,96371.0,96370.0,8.661e-05]
[1733881926025,0.64738829,96371.0,96370.0,8.661e-05]
[1733881926225,0.64838829,96371.0,96370.0,8.661e-05]
[1733881926428,0.80364021,96371.0,96370.0,8.661e-05]
[1733881926681,0.80264021,96371.0,96370.0,8.661e-05]
[1733881926928,0.25995976,96341.0,96340.0,8.56e-05]
[1733881927136,0.57288,96341.0,96340.0,8.56e-05]
[1733881927561,0.365285,96341.0,96340.0,8.56e-05]
[1733881927766,0.25995976,96341.0,96340.0,8.56e-05]
[1733881928606,0.46755476,96341.0,96340.0,8.56e-05]
[1733881928828,0.47255476,96341.0,96340.0,8.56e-05]
[1733881929021,0.57788,96341.0,96340.0,8.56e-05]
[1733881929634,0.57288,96341.0,96340.0,8.56e-05]
[1733881930292,0.365285,96341.0,96340.0,8.56e-05]
[1733881930498,0.12611776,96341.0,96340.0,8.56e-05]
[1733881930754,0.12611776,96341.0,96340.0,0.04161476]
[1733881930755,0.26095976,96341.0,96340.0,0.04161476]
[1733881930958,0.26195976,96341.0,96340.0,0.04161476]
[1733881931161,0.26095976,96341.0,96340.0,0.04161476]
[1733881931378,0.25995976,96341.0,96340.0,0.04161476]
[1733881931579,0.133842,96342.0,96341.0,0.207595]
[1733881931783,0.133842,96344.0,96343.0,0.415182]
[1733881931986,0.133842,96344.0,96343.0,0.207591]
[1733881932391,0.133842,96346.0,96343.0,0.207591]
[1733881932590,0.12611776,96349.0,96348.0,0.20758]
[1733881932795,0.133842,96349.0,96348.0,0.20758]
[1733881932999,0.12611776,96345.0,96343.0,0.25826209]
[1733881933218,0.133842,96344.0,96343.0,0.05067109]
[1733881933425,0.207564,96356.0,96340.0,0.01141786]
[1733881933426,0.12611776,96342.0,96340.0,0.01141786]
[1733881933600,0.25995976,96341.0,96340.0,0.01141786]
[1733881933860,0.25995976,96341.0,96340.0,0.0010856]
[1733881934040,0.25995976,96341.0,96340.0,8.56e-05]
[1733881935053,0.26095976,96341.0,96340.0,8.56e-05]
[1733881935658,0.26395976,96341.0,96340.0,8.56e-05]
[1733881937486,0.369285,96341.0,96340.0,8.56e-05]
[1733881938111,0.62438829,96341.0,96340.0,8.56e-05]
[1733881938562,0.64738829,96341.0,96340.0,8.56e-05]
[1733881938767,0.133842,96307.0,96304.0,0.202931]
[1733881939770,0.207641,96320.0,96300.0,8.57e-05]
[1733881939771,0.133842,96302.0,96300.0,8.57e-05]
[1733881939973,0.133842,96302.0,96301.0,0.207682]
[1733881940138,0.1339618,96302.0,96301.0,0.04963547]
[1733881941342,0.1339618,96302.0,96301.0,0.05063547]
[1733881941748,0.1339618,96302.0,96301.0,0.04963547]
[1733881941749,0.0001198,96302.0,96301.0,0.04963547]
[1733881942401,0.0001198,96302.0,96301.0,0.09953547]
[1733881943221,0.0001198,96302.0,96301.0,0.002]
[1733881943420,0.1339618,96302.0,96301.0,0.002]
[1733881943835,0.1339618,96302.0,96300.0,8.57e-05]
[1733881943836,0.133842,96301.0,96300.0,8.57e-05]
[1733881944605,0.25995976,96301.0,96300.0,8.57e-05]
[1733881945161,0.365285,96301.0,96300.0,0.0010857]
[1733881945588,0.366285,96301.0,96300.0,0.0010857]
[1733881945795,0.365285,96301.0,96300.0,0.0010857]
[1733881946442,0.365285,96301.0,96300.0,8.57e-05]
[1733881947044,0.368285,96301.0,96300.0,8.57e-05]
[1733881947459,0.373285,96301.0,96300.0,8.57e-05]
[1733881947660,0.365285,96301.0,96300.0,8.57e-05]
[1733881947863,0.367285,96301.0,96300.0,8.57e-05]
[1733881948077,0.374285,96301.0,96300.0,8.57e-05]
[1733881948286,0.54586028,96301.0,96300.0,8.57e-05]
[1733881948496,0.92029595,96301.0,96300.0,8.57e-05]
[1733881949548,0.93069063,96301.0,96300.0,8.57e-05]
[1733881949753,0.92869063,96301.0,96300.0,8.57e-05]
[1733881950168,0.93369063,96301.0,96300.0,8.57e-05]
[1733881950383,0.92669063,96301.0,96300.0,8.57e-05]
[1733881950598,0.92669063,96301.0,96300.0,7e-07]
[1733881950805,0.93569063,96301.0,96300.0,7e-07]
[1733881951821,0.65957287,96301.0,96300.0,7e-07]
[1733881952024,0.28245559,96301.0,96300.0,7e-07]
[1733881952253,0.50902067,96301.0,96300.0,7e-07]
[1733881952461,0.46282067,96301.0,96300.0,7e-07]
[1733881952675,0.38452067,96301.0,96300.0,7e-07]
[1733881952878,0.37952067,96301.0,96300.0,7e-07]
[1733881953292,0.38652067,96301.0,96300.0,7e-07]
[1733881953742,0.52052067,96301.0,96300.0,7e-07]
[1733881953945,0.24567867,96301.0,96300.0,7e-07]
[1733881954154,0.40752067,96301.0,96300.0,7e-07]
[1733881954581,0.40252067,96301.0,96300.0,7e-07]
[1733881955011,0.38452067,96301.0,96300.0,7e-07]
[1733881955230,0.25067867,96301.0,96300.0,7e-07]
[1733881955636,0.38452067,96301.0,96300.0,7e-07]
[1733881956493,0.379285,96301.0,96300.0,7e-07]
[1733881957141,0.25316724,96301.0,96300.0,7e-07]
[1733881957333,0.379285,96301.0,96300.0,7e-07]
[1733881957718,0.12611776,96282.0,96281.0,0.18306198]
[1733881958684,0.12611776,96282.0,96281.0,0.19368435]
[1733881959112,0.13111776,96282.0,96281.0,0.19368435]
[1733881959911,0.133842,96281.0,96271.0,0.207744]
[1733881960147,0.133842,96281.0,96270.0,8.55e-05]
[1733881960148,0.25995976,96281.0,96270.0,8.55e-05]
[1733881960365,0.25995976,96281.0,96272.0,0.207742]
[1733881960569,0.25995976,96281.0,96277.0,0.207732]
[1733881961183,0.26095976,96281.0,96277.0,0.207732]
[1733881961843,0.26595976,96281.0,96277.0,0.207732]
[1733881964229,0.139842,96281.0,96277.0,0.207732]
[1733881964432,0.26595976,96281.0,96277.0,0.207732]
[1733881964665,0.26595976,96281.0,96280.0,0.04164087]
[1733881965271,0.006,96281.0,96280.0,0.04164087]
[1733881965431,0.139842,96281.0,96280.0,0.04164087]
[1733881966015,0.006,96281.0,96280.0,0.04164087]
[1733881966229,0.006,96281.0,96280.0,0.05181968]
[1733881966431,0.139842,96281.0,96280.0,0.05181968]
[1733881966779,0.26595976,96281.0,96280.0,0.05181968]
[1733881967597,0.139842,96281.0,96280.0,0.05181968]
[1733881967772,0.26595976,96281.0,96280.0,0.05181968]
[1733881971360,0.139842,96281.0,96280.0,0.12901968]
[1733881971843,0.006,96281.0,96280.0,0.12901968]
[1733881972056,0.006,96281.0,96280.0,0.17811968]
[1733881972670,0.01096,96281.0,96280.0,0.17811968]
[1733881973080,0.00496,96281.0,96280.0,0.17811968]
[1733881973283,0.00496,96281.0,96280.0,0.17911968]
[1733881973837,0.00496,96281.0,96280.0,0.17811968]
[1733881974052,0.00496,96281.0,96280.0,0.08846451]
[1733881974226,0.00496,96281.0,96280.0,0.01126451]
[1733881974605,0.00596,96281.0,96280.0,0.01326451]
[1733881974815,0.00496,96281.0,96280.0,0.01126451]
[1733881975243,0.00496,96281.0,96280.0,0.05693756]
[1733881975446,0.00496,96281.0,96280.0,0.05393756]
[1733881975848,0.00496,96281.0,96280.0,0.05693756]
[1733881976058,0.00496,96281.0,96280.0,0.05593756]
[1733881976495,0.00496,96281.0,96280.0,0.05693756]
[1733881977324,0.26491976,96281.0,96280.0,0.01326451]
[1733881977537,0.26491976,96281.0,96280.0,0.01026451]
[1733881977728,0.26491976,96281.0,96280.0,0.0010857]
[1733881977933,0.26491976,96281.0,96280.0,0.0030857]
[1733881978062,0.26491976,96281.0,96280.0,0.0010857]
[1733881978473,0.26491976,96281.0,96280.0,0.0030857]
[1733881979066,0.26491976,96281.0,96280.0,0.0010857]
[1733881979245,0.26591976,96281.0,96280.0,8.57e-05]
[1733881979450,0.26491976,96281.0,96280.0,0.0010857]
[1733881980025,0.26491976,96281.0,96280.0,8.57e-05]
[1733881980820,0.26591976,96281.0,96280.0,8.57e-05]
[1733881981032,0.26491976,96281.0,96280.0,8.57e-05]
[1733881981246,0.26591976,96281.0,96280.0,8.57e-05]
[1733881981447,0.26991976,96281.0,96280.0,8.57e-05]
[1733881981654,0.26591976,96281.0,96280.0,8.57e-05]
[1733881982058,0.26991976,96281.0,96280.0,8.57e-05]
[1733881982274,0.26591976,96281.0,96280.0,8.57e-05]
[1733881982490,0.371245,96281.0,96280.0,8.57e-05]
[1733881982699,0.370245,96281.0,96280.0,8.57e-05]
[1733881982912,0.448945,96281.0,96280.0,8.57e-05]
[1733881983131,0.450945,96281.0,96280.0,8.57e-05]
[1733881983555,0.496645,96281.0,96280.0,8.57e-05]
[1733881984594,0.494645,96281.0,96280.0,8.57e-05]
[1733881985022,0.75374829,96281.0,96280.0,8.57e-05]
[1733881985228,0.74974829,96281.0,96280.0,8.57e-05]
[1733881985660,0.92881864,96281.0,96280.0,7e-07]
[1733881985881,1.49300995,96281.0,96280.0,7e-07]
[1733881986093,0.79181378,96271.0,96270.0,5e-07]
[1733881986322,1.34895974,96271.0,96270.0,5e-07]
[1733881987015,0.74613578,96261.0,96260.0,8.57e-05]
[1733881987228,0.9615794,96261.0,96260.0,8.57e-05]
[1733881987447,0.92929006,96261.0,96260.0,8.57e-05]
[1733881987667,1.12710773,96261.0,96260.0,0.00063715]
[1733881987869,1.06660963,96261.0,96260.0,0.00063715]
[1733881988290,1.03439335,96261.0,96260.0,0.00063715]
[1733881988499,1.20574432,96261.0,96260.0,0.00063715]
[1733881988922,1.47813287,96261.0,96260.0,0.00063715]
[1733881989146,1.47813287,96261.0,96250.0,8.58e-05]
[1733881989147,0.74588682,96251.0,96250.0,8.58e-05]
[1733881989357,1.02448204,96251.0,96250.0,1.1e-07]
[1733881989561,0.74590782,96241.0,96240.0,8.56e-05]
[1733881989782,0.92803306,96241.0,96240.0,8.56e-05]
[1733881989998,0.92803306,96241.0,96240.0,0.00025097]
[1733881989999,1.53422472,96241.0,96240.0,0.00025097]
[1733881990208,1.37522724,96241.0,96240.0,0.00025097]
[1733881990422,1.03313635,96241.0,96240.0,0.00025097]
[1733881991159,1.04013635,96241.0,96240.0,0.00025097]
[1733881991395,0.92103306,96241.0,96240.0,0.00025097]
[1733881991613,0.62103306,96241.0,96240.0,0.00025097]
[1733881992900,0.60503306,96241.0,96240.0,0.00025097]
[1733881993111,0.61003306,96241.0,96240.0,0.00025097]
[1733881993744,0.60503306,96241.0,96240.0,0.00025097]
[1733881993948,0.52823306,96241.0,96240.0,0.00025097]
[1733881994076,0.53223306,96241.0,96240.0,0.00025097]
[1733881994284,0.54123306,96241.0,96240.0,0.00025097]
[1733881994519,0.53723306,96241.0,96240.0,0.00025097]
[1733881994715,0.52823306,96241.0,96240.0,0.00025097]
[1733881994898,0.93474843,96241.0,96240.0,0.00025097]
[1733881995565,0.95774843,96241.0,96240.0,0.00025097]
[1733881995737,0.94874843,96241.0,96240.0,0.00025097]
[1733881995939,0.95274843,96241.0,96240.0,0.00025097]
[1733881996138,0.96174843,96241.0,96240.0,0.00025097]
[1733881996556,0.95774843,96241.0,96240.0,0.00025097]
[1733881996811,1.03274843,96241.0,96240.0,0.00025097]
[1733881997030,1.03674843,96241.0,96240.0,0.00025097]
[1733881997268,0.08925002,96201.0,96200.0,8.57e-05]
[1733881997477,0.08925002,96201.0,96200.0,0.01591202]
[1733881998098,0.08925002,96206.0,96200.0,0.01591202]
[1733881998309,0.08925002,96206.0,96201.0,0.207898]
[1733881998504,0.08925002,96208.0,96200.0,0.01591202]
[1733881998710,0.08925002,96208.0,96201.0,0.03803455]
[1733881999179,0.08925002,96216.0,96215.0,0.207866]
[1733881999371,0.08925002,96216.0,96211.0,0.207874]
[1733881999710,0.08925002,96216.0,96212.0,0.0825]
[1733881999908,0.21509682,96213.0,96212.0,0.0825]
[1733882000138,0.1258468,96209.0,96200.0,0.0002512]
[1733882000495,0.08925002,96201.0,96200.0,0.0002512]
[1733882001778,0.32042206,96201.0,96200.0,0.0002512]
[1733882001976,0.47042206,96201.0,96200.0,0.0002512]
[1733882002303,0.55904247,96201.0,96200.0,0.0002512]
[1733882002508,0.47042206,96201.0,96200.0,0.0002512]
[1733882003557,0.63099671,96201.0,96200.0,0.0002512]
[1733882003970,0.70799671,96201.0,96200.0,0.0002512]
[1733882004178,0.71399671,96201.0,96200.0,0.0002512]
[1733882004388,0.71199671,96201.0,96200.0,0.0002512]
[1733882004595,0.8111,96201.0,96200.0,0.0002512]
[1733882004798,0.8131,96201.0,96200.0,0.0002512]
[1733882004999,0.8221,96201.0,96200.0,0.0002512]
[1733882005297,0.8131,96201.0,96200.0,0.0002512]
[1733882005718,0.8221,96201.0,96200.0,0.0002512]
[1733882006007,0.82730239,96201.0,96200.0,0.0002512]
[1733882006223,0.82530239,96201.0,96200.0,0.0002512]
[1733882006428,0.82130239,96201.0,96200.0,0.0002512]
[1733882006640,0.7161991,96201.0,96200.0,0.0002512]
[1733882007884,0.7896991,96201.0,96200.0,2e-07]
[1733882008251,0.7896991,96201.0,96195.0,0.0144818]
[1733882008252,0.53809682,96196.0,96195.0,1e-06]
[1733882008417,0.64342206,96196.0,96195.0,1e-06]
[1733882008795,0.82352535,96196.0,96195.0,1e-06]
[1733882009851,0.83252535,96196.0,96195.0,1e-06]
[1733882010424,0.55442206,96196.0,96195.0,1e-06]
[1733882010613,0.40442206,96196.0,96195.0,1e-06]
[1733882010818,0.47942206,96196.0,96195.0,1e-06]
[1733882011355,0.33842206,96196.0,96195.0,1e-06]
[1733882011890,0.32942206,96196.0,96195.0,1e-06]
[1733882012094,0.33842206,96196.0,96195.0,1e-06]
[1733882012430,0.32942206,96196.0,96195.0,1e-06]
[1733882012839,0.33842206,96196.0,96195.0,1e-06]
[1733882013038,0.32942206,96196.0,96195.0,1e-06]
[1733882013241,0.32042206,96196.0,96195.0,1e-06]
[1733882013403,0.32742206,96196.0,96195.0,1e-06]
[1733882014007,0.32042206,96196.0,96195.0,1e-06]
[1733882014545,0.32442206,96196.0,96195.0,1e-06]
[1733882014888,0.33342206,96196.0,96195.0,1e-06]
[1733882015520,0.32442206,96196.0,96195.0,1e-06]
[1733882016261,0.33342206,96196.0,96195.0,1e-06]
[1733882022135,0.75982206,96196.0,96195.0,1e-06]
[1733882022345,0.38809682,96191.0,96190.0,8e-07]
[1733882022554,0.63072121,96191.0,96190.0,8e-07]
[1733882022971,0.78072121,96191.0,96190.0,8e-07]
[1733882024232,0.78872121,96191.0,96190.0,8e-07]
[1733882025612,0.8105418,96191.0,96190.0,8e-07]
[1733882026229,0.81574423,96191.0,96190.0,8e-07]
[1733882027867,1.03184423,96191.0,96190.0,8e-07]
[1733882028003,1.02384423,96191.0,96190.0,8e-07]
[1733882028219,1.02384423,96191.0,96180.0,8.58e-05]
[1733882028220,0.72303782,96181.0,96180.0,8.58e-05]
[1733882028411,0.9094289,96181.0,96180.0,8.58e-05]
[1733882029303,0.7594289,96181.0,96180.0,8.58e-05]
[1733882029492,0.9184289,96181.0,96180.0,8e-07]
[1733882029923,0.9414289,96181.0,96180.0,8e-07]
[1733882030049,0.9414289,96181.0,96170.0,6e-07]
[1733882030050,0.79275882,96171.0,96170.0,6e-07]
[1733882030251,1.00997992,96171.0,96170.0,6e-07]
[1733882030880,1.36441789,96171.0,96170.0,6e-07]
[1733882031251,0.42312382,96141.0,96140.0,8.58e-05]
[1733882031451,0.72731904,96141.0,96140.0,8.58e-05]
[1733882032120,0.75953285,96141.0,96140.0,8.58e-05]
[1733882032293,0.67844906,96141.0,96140.0,8.58e-05]
[1733882032702,0.53744906,96141.0,96140.0,0.00025139]
[1733882032908,0.40260226,96141.0,96140.0,0.00025139]
[1733882033129,0.53744906,96141.0,96140.0,0.00025139]